bitfinex/quotes_BTCUSD_20240819
["timestamp","ask_amount","ask_price","bid_price","bid_amount"]
[1724111333064,0.002822,59491.0,59490.0,3.1134585]
[1724111333268,0.001822,59491.0,59490.0,3.15248442]
[1724111334025,0.002822,59491.0,59490.0,3.15448442]
[1724111334313,0.002822,59491.0,59490.0,3.46455252]
[1724111334448,0.002822,59491.0,59490.0,3.46545672]
[1724111334853,0.000823,59503.0,59498.0,1.304359]
[1724111335057,0.000823,59503.0,59498.0,1.58616696]
[1724111335256,0.000823,59503.0,59498.0,1.58816696]
[1724111335691,0.000823,59503.0,59498.0,1.58416696]
[1724111336256,0.001823,59499.0,59498.0,1.59316696]
[1724111336455,0.002823,59499.0,59498.0,1.60316696]
[1724111338508,0.002823,59499.0,59498.0,1.89225417]
[1724111338704,0.002823,59499.0,59498.0,1.95227596]
[1724111338882,0.002823,59499.0,59498.0,2.35998571]
[1724111339083,0.002823,59499.0,59498.0,1.98729915]
[1724111339336,1e-08,59503.0,59502.0,1.302987]
[1724111339506,1e-08,59503.0,59502.0,1.57433577]
[1724111339708,1e-08,59503.0,59502.0,1.58476173]
[1724111339930,1e-08,59503.0,59502.0,3.08476173]
[1724111340089,1e-08,59503.0,59502.0,3.12178352]
[1724111340514,1e-08,59503.0,59502.0,3.12778352]
[1724111340722,1e-08,59503.0,59502.0,3.08676173]
[1724111340723,0.00100001,59503.0,59502.0,3.08676173]
[1724111340916,0.00200001,59503.0,59502.0,3.12878001]
[1724111341139,0.00200001,59503.0,59502.0,3.13078001]
[1724111341778,0.00200001,59503.0,59502.0,3.12878001]
[1724111341957,0.00200001,59503.0,59502.0,3.36606601]
[1724111342157,0.00200001,59503.0,59502.0,3.44080621]
[1724111342464,0.00200001,59503.0,59502.0,3.39106601]
[1724111343036,0.00200001,59503.0,59502.0,3.15578001]
[1724111344100,0.00200001,59503.0,59502.0,3.11876173]
[1724111344306,0.00200001,59503.0,59502.0,3.15577871]
[1724111345263,0.00200001,59503.0,59502.0,3.15077871]
[1724111345464,0.00200001,59503.0,59502.0,3.15751171]
[1724111345815,0.00200001,59503.0,59502.0,3.15551171]
[1724111346169,0.00200001,59503.0,59502.0,3.15751171]
[1724111346334,0.00200001,59503.0,59502.0,3.39279771]
[1724111346957,0.001,59524.0,59502.0,3.39279771]
[1724111346958,0.0639,59525.0,59524.0,0.823196]
[1724111347110,0.001,59535.0,59526.0,0.587977]
[1724111347111,0.1813,59530.0,59526.0,0.587977]
[1724111347316,0.1,59530.0,59526.0,1.00479369]
[1724111347838,0.1,59530.0,59526.0,2.50479369]
[1724111348485,0.09073,59527.0,59526.0,2.33344492]
[1724111348925,0.15243,59527.0,59526.0,2.09825392]
[1724111349253,0.15743,59527.0,59526.0,2.09825392]
[1724111349661,0.15243,59527.0,59526.0,2.09825392]
[1724111349931,0.15243,59527.0,59526.0,2.10225392]
[1724111350082,0.15343,59527.0,59526.0,2.10525392]
[1724111350595,0.15243,59527.0,59526.0,2.10025392]
[1724111350963,0.15243,59527.0,59526.0,2.10225392]
[1724111351579,0.00823,59527.0,59526.0,2.47804492]
[1724111351788,0.00823,59527.0,59526.0,2.57804492]
[1724111352207,0.00823,59527.0,59526.0,2.51564492]
[1724111352819,0.00823,59527.0,59526.0,2.43744492]
[1724111353430,0.00823,59527.0,59526.0,2.84398469]
[1724111354223,1e-08,59527.0,59526.0,2.84398469]
[1724111355284,1e-08,59527.0,59526.0,2.60879369]
[1724111355864,1e-08,59527.0,59526.0,2.84398469]
[1724111356539,1e-08,59527.0,59526.0,2.61900653]
[1724111356683,1e-08,59527.0,59526.0,3.02059753]
[1724111356884,1e-08,59527.0,59526.0,3.02259753]
[1724111357407,0.1,59530.0,59527.0,1.060341]
[1724111357610,0.1,59530.0,59527.0,1.66827677]
[1724111357786,0.1,59530.0,59527.0,1.6787842]
[1724111358551,0.1,59530.0,59527.0,1.6807842]
[1724111359089,0.1,59530.0,59527.0,1.7447842]
[1724111359498,0.001823,59528.0,59527.0,1.78978528]
[1724111359883,0.001823,59528.0,59527.0,2.03297228]
[1724111360298,0.001823,59528.0,59527.0,3.53297228]
[1724111360748,0.1,59530.0,59529.0,1.436684]
[1724111361001,0.1,59530.0,59529.0,1.96543277]
[1724111361200,0.1,59530.0,59529.0,2.05320789]
[1724111361402,0.00822,59536.0,59535.0,1.445052]
[1724111361608,0.00822,59536.0,59535.0,1.96980077]
[1724111361808,0.00822,59536.0,59535.0,1.98422361]
[1724111362048,0.00822,59536.0,59535.0,3.48022361]
[1724111362455,0.00822,59536.0,59535.0,3.48222361]
[1724111362689,0.00822,59536.0,59535.0,3.48422361]
[1724111363213,0.00822,59536.0,59535.0,3.48022361]
[1724111363413,0.00822,59536.0,59535.0,3.49422361]
[1724111363637,0.00822,59536.0,59535.0,3.24506861]
[1724111364066,0.00822,59536.0,59535.0,3.27106861]
[1724111364563,0.00822,59536.0,59535.0,3.51022361]
[1724111364863,0.00822,59536.0,59535.0,3.52072897]
[1724111365293,0.00822,59536.0,59535.0,3.55280125]
[1724111365651,0.00822,59536.0,59535.0,3.56680125]
[1724111366142,0.00822,59536.0,59535.0,3.60379642]
[1724111366777,0.00822,59536.0,59535.0,3.57579642]
[1724111366984,0.00822,59536.0,59535.0,3.58979642]
[1724111367190,0.00822,59536.0,59535.0,3.60379642]
[1724111367388,0.00822,59536.0,59535.0,3.55972414]
[1724111367606,0.00822,59536.0,59535.0,3.19277397]
[1724111368163,0.00822,59536.0,59535.0,3.17877397]
[1724111368369,0.00822,59536.0,59535.0,3.16477397]
[1724111368791,0.00822,59536.0,59535.0,3.17877397]
[1724111369112,1e-08,59536.0,59535.0,3.16477397]
[1724111369547,1e-08,59536.0,59535.0,2.95837397]
[1724111369750,1e-08,59536.0,59535.0,2.94437397]
[1724111370563,1e-08,59536.0,59535.0,2.93037397]
[1724111370766,1e-08,59536.0,59535.0,2.94437397]
[1724111371555,0.000822,59544.0,59541.0,0.822962]
[1724111371841,0.000822,59544.0,59541.0,1.48032128]
[1724111372847,0.000822,59544.0,59541.0,1.49032128]
[1724111373000,0.000822,59544.0,59541.0,1.50232128]
[1724111373404,0.000822,59544.0,59541.0,1.75972128]
[1724111373811,0.000822,59544.0,59541.0,3.23672128]
[1724111374010,0.000822,59544.0,59541.0,3.23872128]
[1724111374395,0.000822,59544.0,59541.0,3.23672128]
[1724111374604,0.000822,59544.0,59541.0,3.28279356]
[1724111374803,0.000822,59544.0,59541.0,3.23672128]
[1724111375441,0.000822,59544.0,59541.0,2.86182128]
[1724111376665,0.000822,59544.0,59541.0,2.87220283]
[1724111376890,0.080822,59544.0,59541.0,2.63707083]
[1724111379293,0.000822,59544.0,59541.0,2.63707083]
[1724111380878,0.000822,59544.0,59541.0,3.01370283]
[1724111381104,0.000822,59544.0,59541.0,3.05069796]
[1724111381682,0.000822,59544.0,59541.0,3.04969796]
[1724111381888,0.000822,59544.0,59541.0,3.53585145]
[1724111382096,0.000822,59544.0,59543.0,0.976734]
[1724111382301,0.000822,59544.0,59543.0,1.50620677]
[1724111382456,0.000822,59544.0,59543.0,1.75167556]
[1724111382654,0.000822,59544.0,59543.0,1.78867069]
[1724111383299,0.000822,59544.0,59543.0,1.83827207]
[1724111383711,0.000822,59544.0,59543.0,1.84827207]
[1724111384031,0.000822,59544.0,59543.0,1.84827426]
[1724111384301,0.0617,59557.0,59556.0,0.822752]
[1724111384688,0.0617,59557.0,59556.0,0.83303418]
[1724111387014,0.0637,59557.0,59556.0,0.83303418]
[1724111388881,0.1451,59557.0,59556.0,0.59796218]
[1724111389869,0.1451,59557.0,59556.0,0.83303418]
[1724111390287,0.1451,59557.0,59556.0,1.00438295]
[1724111390288,0.002,59557.0,59556.0,1.00438295]
[1724111392264,0.002,59557.0,59556.0,1.14578295]
[1724111392471,0.002,59557.0,59556.0,1.38085495]
[1724111392787,0.002,59557.0,59556.0,2.88085495]
[1724111394251,0.07072,59559.0,59558.0,0.352596]
[1724111394452,0.07072,59559.0,59558.0,0.99407277]
[1724111394569,0.07072,59559.0,59558.0,1.0043319]
[1724111394768,0.07072,59559.0,59558.0,0.8867999]
[1724111395019,0.07072,59559.0,59558.0,1.0043319]
[1724111395218,0.15072,59559.0,59558.0,0.83298313]
[1724111395434,0.15072,59559.0,59558.0,0.83598313]
[1724111396282,0.15072,59559.0,59558.0,1.0073319]
[1724111396283,0.00842,59559.0,59558.0,1.0073319]
[1724111396623,0.00842,59559.0,59558.0,1.1073319]
[1724111396838,0.00842,59559.0,59558.0,1.1113319]
[1724111397415,0.00842,59559.0,59558.0,1.1933319]
[1724111397619,0.00842,59559.0,59558.0,1.4283959]
[1724111397918,0.00842,59559.0,59558.0,2.9283959]
[1724111398418,0.00842,59559.0,59558.0,3.27856037]
[1724111398610,0.00842,59559.0,59558.0,3.30995288]
[1724111398945,0.00842,59559.0,59558.0,3.35969197]
[1724111399549,0.00842,59559.0,59558.0,3.30995288]
[1724111399952,0.15002,59559.0,59558.0,0.05424452]
[1724111400154,0.15002,59559.0,59558.0,0.01725913]
[1724111400155,0.59506822,59559.0,59558.0,0.01725913]
[1724111400353,0.83012922,59559.0,59558.0,0.007]
[1724111400601,0.503611,59559.0,59558.0,0.007]
[1724111401101,0.15102,59559.0,59558.0,0.004]
[1724111401299,0.15102,59559.0,59558.0,0.005]
[1724111401479,0.15102,59559.0,59558.0,0.13977379]
[1724111401728,0.15002,59559.0,59558.0,0.13977379]
[1724111401888,0.15002,59559.0,59558.0,0.60890179]
[1724111402088,0.15002,59559.0,59558.0,0.60490179]
[1724111402308,0.07222,59559.0,59558.0,0.77725056]
[1724111402511,0.07422,59559.0,59558.0,1.01231456]
[1724111402709,0.07422,59559.0,59558.0,0.60490179]
[1724111402911,0.07422,59559.0,59558.0,0.60590179]
[1724111403110,0.07622,59559.0,59558.0,0.60590179]
[1724111403314,0.26915,59559.0,59558.0,0.01724179]
[1724111403591,0.001,59556.0,59555.0,0.117537]
[1724111403797,0.001,59556.0,59555.0,0.352613]
[1724111403934,0.15062,59559.0,59558.0,0.117532]
[1724111403935,0.15162,59559.0,59558.0,0.117532]
[1724111404142,0.15162,59559.0,59558.0,0.13476744]
[1724111404343,0.15162,59559.0,59558.0,0.36983144]
[1724111405641,0.14862,59559.0,59558.0,0.36983144]
[1724111406259,0.14862,59559.0,59558.0,0.60489544]
[1724111406474,0.15062,59559.0,59558.0,0.60489544]
[1724111406681,0.01042,59559.0,59558.0,0.60489544]
[1724111407100,0.00842,59559.0,59558.0,0.60489544]
[1724111407512,0.00842,59559.0,59558.0,2.33995944]
[1724111407920,0.01042,59559.0,59558.0,2.33995944]
[1724111409037,0.01042,59559.0,59558.0,2.51130821]
[1724111409150,0.00842,59559.0,59558.0,2.57650821]
[1724111409355,0.00842,59559.0,59558.0,2.65330821]
[1724111409559,0.00942,59559.0,59558.0,2.65330821]
[1724111410162,0.00942,59559.0,59558.0,2.7280661]
[1724111410422,0.00842,59559.0,59558.0,2.7280661]
[1724111410638,0.00842,59559.0,59558.0,2.7430661]
[1724111410958,0.00842,59559.0,59558.0,3.14442248]
[1724111411160,0.00842,59559.0,59558.0,3.13742248]
[1724111411335,0.00842,59559.0,59558.0,2.74003646]
[1724111411659,0.00842,59559.0,59558.0,2.66530821]
[1724111411938,0.00842,59559.0,59558.0,2.67630821]
[1724111412494,0.00842,59559.0,59558.0,3.36048778]
[1724111412697,0.00842,59559.0,59558.0,3.6551284]
[1724111412926,0.00842,59559.0,59558.0,3.4207284]
[1724111414086,0.00842,59559.0,59558.0,3.38374108]
[1724111414288,0.00822,59563.0,59562.0,0.822671]
[1724111414507,0.00822,59563.0,59562.0,1.14381937]
[1724111414687,0.00822,59563.0,59562.0,1.11124344]
[1724111415110,0.00822,59563.0,59562.0,2.61124344]
[1724111415390,0.00822,59563.0,59562.0,2.66103622]
[1724111415590,0.00822,59563.0,59562.0,2.61124344]
[1724111416233,0.00822,59563.0,59562.0,2.84629244]
[1724111416433,0.00822,59563.0,59562.0,3.43181405]
[1724111416609,0.00822,59563.0,59562.0,3.44481405]
[1724111417275,0.00822,59563.0,59562.0,3.41988033]
[1724111417480,0.00822,59563.0,59562.0,3.34520159]
[1724111417685,0.00822,59563.0,59562.0,3.38290932]
[1724111417892,0.00822,59563.0,59562.0,2.98568995]
[1724111418500,0.00822,59563.0,59562.0,2.67404095]
[1724111421611,0.00822,59563.0,59562.0,2.75354095]
[1724111421976,0.00822,59563.0,59562.0,2.81774095]
[1724111422360,0.00822,59563.0,59562.0,3.05278995]
[1724111422740,0.00822,59563.0,59562.0,3.41432076]
[1724111423174,0.00822,59563.0,59562.0,3.51390018]
[1724111423378,0.00822,59563.0,59562.0,3.50990018]
[1724111423599,0.00822,59563.0,59562.0,3.64472076]
[1724111423815,0.00822,59563.0,59562.0,3.67669591]
[1724111424016,0.0002,59579.0,59578.0,0.970751]
[1724111424226,0.0002,59579.0,59578.0,1.14209977]
[1724111424432,0.0002,59579.0,59578.0,1.20885301]
[1724111424635,0.0002,59579.0,59578.0,1.44383901]
[1724111424840,0.0002,59579.0,59578.0,1.39408096]
[1724111425049,0.0002,59579.0,59578.0,1.32808096]
[1724111425248,0.0002,59579.0,59578.0,1.29549416]
[1724111425822,0.0002,59579.0,59578.0,1.06050816]
[1724111426052,0.0002,59579.0,59578.0,1.01279496]
[1724111426405,0.0002,59579.0,59578.0,0.60846019]
[1724111426613,0.1473,59579.0,59578.0,0.37347419]
[1724111427023,0.1463,59579.0,59578.0,0.60846019]
[1724111427228,0.0655,59579.0,59578.0,0.84344619]
[1724111428950,0.0655,59579.0,59578.0,2.34344619]
[1724111429584,0.0655,59579.0,59578.0,2.10846019]
[1724111430122,0.1481,59579.0,59578.0,2.10846019]
[1724111430334,0.148922,59579.0,59578.0,2.10846019]
[1724111431401,0.066322,59579.0,59578.0,2.10846019]
[1724111431604,0.066322,59579.0,59578.0,2.10326452]
[1724111432852,0.066322,59579.0,59578.0,2.50959929]
[1724111435559,0.066322,59579.0,59578.0,2.65699929]
[1724111435560,0.001022,59579.0,59578.0,2.65699929]
[1724111436595,0.001022,59579.0,59578.0,2.65499929]
[1724111436806,0.001022,59579.0,59578.0,2.59929929]
[1724111437011,0.001022,59579.0,59578.0,2.52559929]
[1724111437339,0.001022,59579.0,59578.0,2.51459929]
[1724111437568,0.001022,59579.0,59578.0,2.10826452]
[1724111438358,0.001022,59579.0,59578.0,2.09926452]
[1724111438567,0.150722,59579.0,59578.0,1.86427852]
[1724111438770,0.150722,59579.0,59578.0,2.11226452]
[1724111438978,0.001022,59579.0,59578.0,2.50559929]
[1724111439175,0.001022,59579.0,59578.0,2.51759929]
[1724111439433,0.001022,59579.0,59578.0,2.52859929]
[1724111439630,0.001022,59579.0,59578.0,2.58999929]
[1724111440087,0.001022,59579.0,59578.0,2.60299929]
[1724111440261,0.001022,59579.0,59578.0,2.83798529]
[1724111441140,0.001022,59579.0,59578.0,2.90548529]
[1724111442057,0.001022,59579.0,59578.0,2.89948529]
[1724111442413,0.001022,59579.0,59578.0,2.91348529]
[1724111442780,0.001022,59579.0,59578.0,2.90648529]
[1724111443195,0.001022,59579.0,59578.0,2.92048529]
[1724111443854,0.001022,59579.0,59578.0,2.68549929]
[1724111444285,0.001022,59579.0,59578.0,2.92048529]
[1724111444709,1e-06,59579.0,59578.0,3.15747129]
[1724111444928,1e-06,59579.0,59578.0,3.28047129]
[1724111445125,1e-06,59579.0,59578.0,3.27847129]
[1724111445349,1e-06,59579.0,59578.0,3.04348529]
[1724111445754,1e-06,59579.0,59578.0,3.00648529]
[1724111445996,1e-06,59579.0,59578.0,2.99248529]
[1724111446328,1e-06,59579.0,59578.0,3.00648529]
[1724111448513,1e-06,59579.0,59578.0,3.02048529]
[1724111451047,1e-06,59579.0,59578.0,3.39268221]
[1724111451727,0.00822,59587.0,59586.0,0.822339]
[1724111451922,0.00822,59587.0,59586.0,0.99368777]
[1724111452153,0.00822,59587.0,59586.0,1.00427132]
[1724111452362,0.07552,59587.0,59586.0,2.50427132]
[1724111452565,0.15862,59587.0,59586.0,2.50427132]
[1724111453237,0.15862,59587.0,59586.0,2.51927132]
[1724111453813,0.07552,59587.0,59586.0,2.51927132]
[1724111454016,0.00822,59587.0,59586.0,2.90122532]
[1724111454219,0.00822,59587.0,59586.0,3.56832739]
[1724111454439,0.00822,59587.0,59586.0,3.5198182]
[1724111454651,0.00822,59587.0,59586.0,3.12282137]
[1724111454879,0.00822,59587.0,59586.0,2.85737034]
[1724111455084,0.00822,59587.0,59586.0,2.61441634]
[1724111455287,0.00822,59587.0,59586.0,2.61827132]
[1724111455456,0.00822,59587.0,59586.0,2.91688897]
[1724111455678,0.00822,59587.0,59586.0,2.88889687]
[1724111456036,0.00822,59587.0,59586.0,2.86622532]
[1724111456237,0.00822,59587.0,59586.0,2.85222532]
[1724111456477,0.00822,59587.0,59586.0,2.90189687]
[1724111456660,0.00822,59587.0,59586.0,2.85222532]
[1724111457021,0.00822,59587.0,59586.0,2.86622532]
[1724111457476,0.00822,59587.0,59586.0,2.85322532]
[1724111457693,0.00822,59587.0,59586.0,2.86722532]
[1724111457902,0.00822,59587.0,59586.0,3.01172532]
[1724111458113,0.00822,59587.0,59586.0,3.0862092]
[1724111458322,0.00822,59587.0,59586.0,3.10917721]
[1724111458536,0.00822,59587.0,59586.0,3.49434911]
[1724111458901,0.00822,59587.0,59586.0,3.48034911]
[1724111459120,0.00822,59587.0,59586.0,3.42386523]
[1724111459335,0.00822,59587.0,59586.0,3.56898524]
[1724111459548,0.00822,59587.0,59586.0,3.44486523]
[1724111459754,0.00822,59587.0,59586.0,3.67981923]
[1724111460011,0.00822,59587.0,59586.0,3.66781923]
[1724111460183,0.00822,59587.0,59586.0,3.44286523]
[1724111460381,0.00822,59587.0,59586.0,3.52921715]
[1724111460579,0.00822,59587.0,59586.0,3.51521715]
[1724111460804,0.00822,59587.0,59586.0,3.40689722]
[1724111460954,0.00822,59587.0,59586.0,3.44386478]
[1724111461372,0.00822,59587.0,59586.0,3.52921584]
[1724111461578,0.00822,59587.0,59586.0,3.44385549]
[1724111461989,0.00822,59587.0,59586.0,3.5061984]
[1724111462193,0.00822,59587.0,59586.0,3.4921984]
[1724111462411,0.00822,59587.0,59586.0,3.52019799]
[1724111462615,0.00822,59587.0,59586.0,3.3368718]
[1724111463113,0.00822,59587.0,59586.0,2.89019247]
[1724111463373,0.00822,59587.0,59586.0,2.90290478]
[1724111463678,0.00822,59587.0,59586.0,2.91690478]
[1724111464177,0.00822,59587.0,59586.0,3.45027447]
[1724111464975,0.00822,59587.0,59586.0,3.52661738]
[1724111465180,0.00822,59587.0,59586.0,3.42727447]
[1724111465383,0.00822,59587.0,59586.0,3.52663321]
[1724111466674,1e-08,59588.0,59587.0,1.057275]
[1724111466914,1e-08,59588.0,59587.0,1.81229295]
[1724111467130,1e-08,59588.0,59587.0,1.82551499]
[1724111467336,1e-08,59588.0,59587.0,3.24899496]
[1724111467756,1e-08,59588.0,59587.0,3.26299496]
[1724111468384,1e-08,59588.0,59587.0,3.36235599]
[1724111468559,1e-08,59588.0,59587.0,2.89083191]
[1724111468771,1e-08,59588.0,59587.0,3.33756132]
[1724111468919,1e-08,59588.0,59587.0,2.89083191]
[1724111469100,1e-08,59588.0,59587.0,3.27703191]
[1724111469304,1e-08,59588.0,59587.0,3.9251595]
[1724111469509,0.0003,59594.0,59593.0,0.822241]
[1724111469932,0.0003,59594.0,59593.0,2.25927977]
[1724111470123,0.0003,59594.0,59593.0,3.75927977]
[1724111470345,0.0003,59594.0,59593.0,3.72231162]
[1724111470461,0.0003,59594.0,59593.0,3.63507317]
[1724111470660,0.0003,59594.0,59593.0,3.8719333]
[1724111470901,0.0003,59594.0,59593.0,3.8929333]
[1724111471145,0.0003,59594.0,59593.0,4.01703607]
[1724111471329,0.0003,59594.0,59593.0,4.03102502]
[1724111471532,0.0003,59594.0,59593.0,4.03097951]
[1724111471948,0.0003,59594.0,59593.0,3.9069333]
[1724111472114,0.0003,59594.0,59593.0,3.90693132]
[1724111472325,0.0003,59594.0,59593.0,4.03097055]
[1724111472527,0.0003,59594.0,59593.0,3.77122061]
[1724111472704,0.0003,59594.0,59593.0,3.78132596]
[1724111472916,0.0003,59594.0,59593.0,3.76732596]
[1724111473116,0.0003,59594.0,59593.0,3.37212596]
[1724111473326,0.0003,59594.0,59593.0,2.96441659]
[1724111473528,0.0003,59594.0,59593.0,2.91479895]
[1724111473929,0.0003,59594.0,59593.0,2.87783907]
[1724111476996,0.0003,59594.0,59593.0,2.64291307]
[1724111478078,0.0003,59594.0,59593.0,2.61491307]
[1724111478284,0.0003,59594.0,59593.0,2.71550161]
[1724111478464,0.0003,59594.0,59593.0,2.64291307]
[1724111478663,0.0003,59594.0,59593.0,2.71550168]
[1724111478864,0.001122,59594.0,59593.0,2.66587732]
[1724111479069,0.001122,59594.0,59593.0,2.88680332]
[1724111479295,0.001122,59594.0,59593.0,2.84983907]
[1724111479490,0.001122,59594.0,59593.0,2.86383907]
[1724111479933,0.001122,59594.0,59593.0,2.86283907]
[1724111480228,0.001122,59594.0,59593.0,2.87683907]
[1724111481287,0.001122,59594.0,59593.0,2.91349124]
[1724111481695,0.001122,59594.0,59593.0,2.92749124]
[1724111483332,0.001122,59594.0,59593.0,2.64291307]
[1724111483687,0.147722,59594.0,59593.0,2.5111267]
[1724111483889,0.147722,59594.0,59593.0,2.46145895]
[1724111484333,0.001122,59594.0,59593.0,3.54875838]
[1724111484533,0.0002,59599.0,59598.0,0.587267]
[1724111484735,0.0002,59599.0,59598.0,1.44014613]
[1724111485084,0.0002,59599.0,59598.0,1.71106011]
[1724111485332,0.0002,59599.0,59598.0,3.27286058]
[1724111485541,0.0002,59599.0,59598.0,3.37286058]
[1724111485745,0.0002,59599.0,59598.0,3.33589655]
[1724111485955,0.0002,59599.0,59598.0,3.34989655]
[1724111486586,0.0002,59599.0,59598.0,3.22571437]
[1724111487012,0.0002,59599.0,59598.0,3.23584279]
[1724111487803,0.0002,59599.0,59598.0,3.24884279]
[1724111488011,0.0002,59599.0,59598.0,3.39304279]
[1724111489077,0.0002,59599.0,59598.0,3.33064279]
[1724111490676,0.0002,59599.0,59598.0,3.3676029]
[1724111492069,0.001022,59599.0,59598.0,3.3676029]
[1724111494082,0.001022,59599.0,59598.0,3.36758227]
[1724111494285,0.001022,59599.0,59598.0,3.28578227]
[1724111494491,0.001022,59599.0,59598.0,3.28578286]
[1724111495720,0.001022,59599.0,59598.0,3.28578248]
[1724111496141,0.001022,59599.0,59598.0,3.43288248]
[1724111496342,0.001022,59599.0,59598.0,3.39592216]
[1724111496548,0.001022,59599.0,59598.0,3.43288238]
[1724111496745,0.001022,59599.0,59598.0,3.66778938]
[1724111496946,0.001022,59599.0,59598.0,3.69078938]
[1724111497752,0.001022,59599.0,59598.0,3.69078785]
[1724111499378,0.03779914,59606.0,59605.0,1.670713]
[1724111499580,4.07e-05,59625.0,59611.0,0.496282]
[1724111499807,0.00040492,59628.0,59611.0,0.496282]
[1724111499808,0.00040492,59628.0,59611.0,1.9826892]
[1724111500008,0.00040492,59628.0,59611.0,3.98251511]
[1724111500214,0.00040492,59628.0,59611.0,4.08251511]
[1724111500438,3e-08,59612.0,59611.0,4.23529879]
[1724111500644,3e-08,59612.0,59611.0,4.08251511]
[1724111500846,0.00322003,59617.0,59616.0,1.056762]
[1724111501046,0.00322003,59617.0,59616.0,1.58936299]
[1724111501248,0.00322003,59617.0,59616.0,1.56458442]
[1724111501460,0.08832003,59617.0,59616.0,0.90803878]
[1724111501688,0.08832003,59617.0,59611.0,1.75997091]
[1724111501689,0.001,59615.0,59611.0,1.56071592]
[1724111501906,0.0851,59614.0,59613.0,0.352272]
[1724111502118,0.0851,59614.0,59613.0,0.58712]
[1724111503255,0.0851,59614.0,59613.0,0.59850192]
[1724111504229,0.0851,59614.0,59613.0,0.62150192]
[1724111505294,0.085922,59614.0,59613.0,0.62150192]
[1724111505492,0.085922,59614.0,59613.0,2.12150192]
[1724111505873,0.151022,59614.0,59613.0,1.65180592]
[1724111506027,0.151022,59614.0,59613.0,1.88665392]
[1724111506880,0.151022,59614.0,59613.0,1.87465392]
[1724111507080,0.151022,59614.0,59613.0,1.86365392]
[1724111507303,0.151022,59614.0,59613.0,1.63580592]
[1724111507634,0.151022,59614.0,59613.0,1.64180592]
[1724111508098,0.151022,59614.0,59613.0,1.87065392]
[1724111508304,0.151022,59614.0,59613.0,2.10550192]
[1724111508506,0.151022,59614.0,59613.0,2.11150192]
[1724111510069,0.151022,59614.0,59613.0,0.37665392]
[1724111510658,0.151022,59614.0,59613.0,1.87665392]
[1724111512291,0.151022,59614.0,59613.0,1.64180592]
[1724111512421,0.268444,59614.0,59613.0,0.02438192]
[1724111512625,0.503288,59614.0,59613.0,0.013]
[1724111512828,0.503288,59614.0,59613.0,0.02632336]
[1724111512829,0.57117581,59614.0,59613.0,0.02632336]
[1724111513035,0.57117581,59614.0,59613.0,0.013]
[1724111513235,0.57117581,59614.0,59613.0,0.007]
[1724111513637,0.57117581,59614.0,59613.0,0.02032988]
[1724111514068,0.57117581,59614.0,59613.0,0.01332988]
[1724111514246,0.119244,59614.0,59609.0,0.11743]
[1724111514425,0.001,59610.0,59609.0,0.587155]
[1724111514632,0.001,59613.0,59608.0,1.5]
[1724111514831,0.001,59613.0,59612.0,0.352278]
[1724111515034,0.001,59613.0,59612.0,0.58713]
[1724111515684,0.0835,59613.0,59612.0,0.117426]
[1724111515889,0.1533,59613.0,59612.0,0.117426]
[1724111516085,0.1533,59613.0,59612.0,0.352278]
[1724111516290,0.1533,59613.0,59612.0,0.36825588]
[1724111516499,0.1533,59613.0,59612.0,0.13340388]
[1724111516702,0.1533,59613.0,59612.0,0.01697788]
[1724111516937,0.270724,59613.0,59612.0,0.01697788]
[1724111517138,0.23684,59615.0,59614.0,5.4245775]
[1724111517346,0.35226,59615.0,59614.0,5.4245775]
[1724111517754,0.35226,59615.0,59614.0,5.43788136]
[1724111518158,0.35326,59615.0,59614.0,5.43788136]
[1724111518385,0.11842,59615.0,59614.0,5.43788136]
[1724111518584,0.11742,59615.0,59614.0,5.43788136]
[1724111519971,0.11942,59615.0,59614.0,5.43788136]
[1724111520273,0.1501,59615.0,59614.0,5.43788136]
[1724111520478,0.1521,59615.0,59614.0,5.43788136]
[1724111520703,0.7392,59615.0,59614.0,5.43788136]
[1724111521954,0.97604,59615.0,59614.0,5.43788136]
[1724111522597,1.07604,59615.0,59614.0,5.43788136]
[1724111522806,1.10004,59615.0,59614.0,5.43788136]
[1724111522983,1.33088,59615.0,59614.0,5.36778136]
[1724111523153,1.26578,59615.0,59614.0,5.31548136]
[1724111523356,1.42433843,59615.0,59614.0,5.31548136]
[1724111523558,1.42333843,59615.0,59614.0,5.31448136]
[1724111523787,1.47358591,59615.0,59614.0,5.31348136]
[1724111524060,0.81834748,59615.0,59614.0,5.31448136]
[1724111524289,0.7681,59615.0,59614.0,5.31548136]
[1724111524518,0.7701,59615.0,59614.0,5.31548136]
[1724111525103,0.7731,59615.0,59614.0,5.31548136]
[1724111525873,1.00794,59615.0,59614.0,5.31548136]
[1724111526506,0.7701,59615.0,59614.0,5.31548136]
[1724111528307,1.00494,59615.0,59614.0,5.31548136]
[1724111528930,1.00794,59615.0,59614.0,5.31548136]
[1724111529140,1.03094,59615.0,59614.0,5.31548136]
[1724111529347,1.26578,59615.0,59614.0,5.31548136]
[1724111529760,0.53526,59615.0,59614.0,5.31548136]
[1724111529964,0.53526,59615.0,59614.0,5.32218877]
[1724111530167,0.7701,59615.0,59614.0,5.32218877]
[1724111532693,0.6701,59615.0,59614.0,5.32218877]
[1724111533326,0.5891,59615.0,59614.0,5.32218877]
[1724111535244,0.676,59615.0,59614.0,5.32218877]
[1724111535455,0.91084,59615.0,59614.0,5.32218877]
[1724111535656,0.676,59615.0,59614.0,5.32218877]
[1724111536167,0.678,59615.0,59614.0,5.32218877]
[1724111536667,0.676,59615.0,59614.0,5.32218877]
[1724111537519,0.91284,59615.0,59614.0,5.32218877]
[1724111537959,0.678,59615.0,59614.0,5.32218877]
[1724111538163,0.676,59615.0,59614.0,5.32218877]
[1724111538398,0.676,59615.0,59614.0,5.39018877]
[1724111538399,0.002,59615.0,59614.0,5.39018877]
[1724111538610,0.002,59615.0,59614.0,5.50761077]
[1724111539123,0.002,59615.0,59614.0,5.50861077]
[1724111539356,0.002,59615.0,59614.0,5.97829877]
[1724111539571,0.00322003,59617.0,59616.0,0.352254]
[1724111539789,0.00322003,59617.0,59616.0,0.58809]
[1724111539981,0.00322003,59617.0,59616.0,0.37323049]
[1724111540992,0.00722003,59617.0,59616.0,0.37323049]
[1724111541645,0.00722003,59617.0,59616.0,1.87323049]